bitfinex-derivatives/quotes_ETHF0:USTF0_20251012
["timestamp","ask_amount","ask_price","bid_price","bid_amount"]
[1760309057951,1.20825293,4136.0,4135.9,0.7968]
[1760309058452,0.43487,4135.9,4135.6,0.43489]
[1760309058643,0.43487,4135.9,4135.7,0.7968]
[1760309058843,0.43487,4135.9,4135.6,0.43489]
[1760309059043,0.43487,4135.9,4135.7,0.7968]
[1760309059752,0.43487,4135.8,4135.7,0.7968]
[1760309061353,1.20825293,4136.0,4135.7,0.7968]
[1760309061654,0.00229293,4136.0,4135.9,0.7809]
[1760309063448,0.43714293,4136.0,4135.9,0.7809]
[1760309063949,1.18384293,4136.0,4135.9,0.7809]
[1760309064356,0.43488,4135.8,4135.7,0.7809]
[1760309064650,1.1816,4135.5,4135.4,3.2078]
[1760309064842,3.10060971,4135.8,4135.2,0.43493]
[1760309065046,0.43492,4135.3,4135.2,1.21583]
[1760309065250,3.2078,4135.9,4135.4,1.21581]
[1760309065251,0.43491,4135.5,4135.4,1.21581]
[1760309065446,0.43491,4135.5,4135.4,4.42361]
[1760309066052,0.43491,4135.5,4135.4,3.9887]
[1760309067156,1.18161,4135.5,4135.4,3.2078]
[1760309067850,1.18161,4135.5,4135.4,3.9887]
[1760309068048,0.4349,4135.6,4135.5,1.2158]
[1760309068249,0.4349,4135.6,4135.5,0.7809]
[1760309068856,0.4349,4135.5,4135.4,3.2078]
[1760309069054,0.297,4135.5,4135.0,0.7809]
[1760309069352,0.43494,4135.2,4135.0,0.7809]
[1760309069559,0.43494,4135.2,4135.1,1.21584]
[1760309069758,1.18164,4135.2,4135.1,1.21584]
[1760309069951,3.15087931,4135.5,4135.4,0.43491]
[1760309070152,0.4349,4135.5,4135.4,1.21581]
[1760309070854,0.4349,4135.5,4135.4,0.7809]
[1760309071157,0.4349,4135.5,4135.4,4.42361]
[1760309071457,0.00229293,4136.0,4135.9,1.21576]
[1760309071854,3.64255,4137.0,4136.7,0.43477]
[1760309072158,3.64255,4137.0,4136.5,0.3149]
[1760309072159,3.64255,4137.0,4136.9,0.7809]
[1760309072557,6.818877,4137.0,4136.9,0.7809]
[1760309072761,6.821426,4137.0,4136.9,0.78281106]
[1760309074356,7.568126,4137.0,4136.9,0.78281106]
[1760309075150,6.386676,4137.0,4136.9,0.78281106]
[1760309075748,7.133376,4137.0,4136.9,0.78281106]
[1760309076350,7.133376,4137.0,4136.9,0.00191106]
[1760309076554,7.443876,4137.0,4136.9,0.00191106]
[1760309076756,7.133376,4137.0,4136.9,0.00191106]
[1760309078757,7.568116,4137.0,4136.9,0.78281106]
[1760309078966,0.002549,4137.0,4136.9,1.21757106]
[1760309079163,0.002549,4137.0,4136.9,4.42537106]
[1760309080163,0.43465,4137.9,4137.8,0.7809]
[1760309081064,0.43664648,4137.9,4137.8,0.7809]
[1760309081858,0.43468,4137.6,4137.5,0.3149]
[1760309082458,0.43468,4137.6,4137.5,1.0958]
[1760309082658,0.43468,4137.6,4137.5,1.53049]
[1760309084766,0.43468,4137.6,4137.5,1.0958]
[1760309085059,0.43466,4137.8,4137.7,0.7905]
[1760309087167,1.17786,4137.8,4137.7,0.7905]
[1760309087964,1.69006,4137.8,4137.7,1.2968]
[1760309088265,0.43466,4137.8,4137.7,1.8119]
[1760309089465,0.94686,4137.8,4137.7,1.8119]
[1760309091365,0.00199648,4137.9,4137.8,2.24656]
[1760309091574,0.00199648,4137.9,4137.6,3.2078]
[1760309091575,0.43458,4138.6,4138.5,2.0907]
[1760309091871,4.2363,4139.2,4139.1,1.2831]
[1760309092067,3.64231,4139.2,4139.1,0.7726]
[1760309092573,3.64516904,4139.2,4139.1,0.7726]
[1760309094368,3.64516904,4139.2,4135.5,10.87251]
[1760309094369,0.43459,4138.5,4138.4,0.7726]
[1760309097375,3.0992094,4138.5,4138.3,3.2078]
[1760309097568,3.0992094,4138.5,4137.8,1.29042695]
[1760309097569,0.4346,4138.4,4138.1,0.7726]
[1760309097770,0.4346,4138.4,4138.3,3.2078]
[1760309097968,0.4346,4138.4,4138.3,3.9804]
[1760309098266,1.08638,4138.9,4138.4,0.7726]
[1760309098573,0.43455,4138.9,4138.8,3.2078]
[1760309098776,0.43736904,4139.2,4139.1,0.7726]
[1760309098973,4.57481681,4140.0,4139.1,0.7726]
[1760309098974,3.9538,4140.3,4139.1,0.7726]
[1760309099268,3.2078,4140.3,4139.9,0.7726]
[1760309099472,0.43442,4140.1,4140.0,1.0639]
[1760309100065,0.43615709,4140.1,4140.0,1.06647478]
[1760309100678,1.18215709,4140.1,4140.0,0.00257478]
[1760309100973,4.34852345,4140.1,4140.0,0.00257478]
[1760309101375,0.43455,4138.9,4138.8,3.2078]
[1760309101576,0.43451,4139.3,4139.1,0.7726]
[1760309101774,0.43451,4139.3,4139.0,0.2913]
[1760309102081,0.43452,4139.1,4139.0,1.0639]
[1760309102279,0.43455,4138.9,4138.8,3.2078]
[1760309102575,0.43454,4139.0,4138.8,3.21037134]
[1760309102779,3.94676994,4138.9,4138.8,3.21037134]
[1760309102978,0.746,4138.9,4138.8,3.21037134]
[1760309103275,3.94676994,4138.9,4138.8,3.21037134]
[1760309103479,3.94676994,4138.9,4138.8,0.00257134]
[1760309103670,11.43238675,4138.9,4138.8,1.34e-06]
[1760309103873,3.94676994,4138.9,4138.8,1.34e-06]
[1760309104174,0.43454,4139.0,4138.8,0.77260134]
[1760309104379,3.07955845,4138.9,4138.8,1.34e-06]
[1760309106383,3.07955845,4138.9,4137.4,1.72610769]
[1760309106384,0.72654,4138.0,4137.8,1.29042695]
[1760309106576,0.43471,4137.3,4137.2,1.29042695]
[1760309106874,0.43477,4136.8,4136.7,2.06302695]
[1760309107076,1.18077,4136.8,4136.6,1.29042695]
[1760309107269,0.43478,4136.7,4136.6,0.00207823]
[1760309107469,1.18078,4136.7,4136.6,0.00207823]
[1760309107679,4.32315173,4136.7,4136.6,0.00207823]
[1760309108481,1.08708,4136.2,4135.6,3.2078]
[1760309108775,0.2919,4136.0,4135.6,3.2078]
[1760309108980,1.18088,4135.7,4135.6,3.2078]
[1760309109482,1.18096,4135.0,4134.9,3.2078]
[1760309109878,4.37457431,4135.0,4134.9,3.21029379]
[1760309110481,4.29502,4135.7,4135.0,0.7726]
[1760309110482,0.43493,4135.3,4135.0,0.7726]
[1760309110779,0.43486,4136.0,4135.0,1.58898159]
[1760309110980,0.746,4135.9,4135.6,3.9804]
[1760309111182,0.43488,4135.8,4135.7,0.7726]
[1760309111482,0.746,4135.7,4135.6,3.2078]
[1760309111980,0.746,4135.6,4135.1,3.2078]
[1760309112367,3.12871139,4135.5,4135.1,3.2078]
[1760309112570,0.746,4135.4,4135.1,3.2078]
[1760309112775,3.15046495,4135.6,4135.2,0.7726]
[1760309112976,1.37891,4136.5,4135.2,0.7726]
[1760309112977,0.00264327,4136.8,4136.2,0.7726]
[1760309113377,3.21044327,4136.8,4136.7,0.43478]
[1760309113574,0.00264327,4136.8,4136.7,1.20738]
[1760309114174,3.2078,4137.7,4137.3,0.43471]
[1760309114476,3.2078,4137.7,4137.3,0.7726]
[1760309114477,3.55855385,4137.5,4137.3,0.7726]
[1760309114672,3.55855385,4137.5,4137.2,0.43472]
[1760309114878,3.12385385,4137.6,4136.7,0.7726]
[1760309114879,1.08671,4137.6,4136.7,0.7726]
[1760309115181,0.746,4137.3,4137.0,3.2078]
[1760309115385,1.18073,4137.2,4137.0,3.2078]
[1760309115586,4.36240986,4137.2,4137.0,3.2078]
[1760309115977,0.43473,4137.2,4137.0,3.2078]
[1760309116186,3.92767986,4137.1,4137.0,3.2078]
[1760309116479,0.43478,4136.7,4136.1,0.7726]
[1760309116676,0.43477,4136.8,4136.1,0.7726]
[1760309116876,3.62936472,4136.6,4136.3,1.20741]
[1760309117075,1.18079,4136.6,4136.3,1.20741]
[1760309117583,0.746,4136.6,4136.4,1.2074]
[1760309117774,1.18071,4137.4,4136.9,0.43475]
[1760309117979,0.746,4137.4,4137.0,3.2078]
[1760309118181,3.86373551,4137.4,4137.0,3.2078]
[1760309118380,0.43473,4137.2,4137.1,0.7726]
[1760309118575,0.43466,4137.9,4137.5,0.7726]
[1760309118783,0.746,4138.0,4137.5,4.2717]
[1760309119683,0.43467,4137.8,4137.5,4.2717]
[1760309120282,0.43468,4137.7,4137.5,4.2717]
[1760309121279,3.94373498,4137.6,4137.5,3.2078]
[1760309121475,0.00272659,4137.6,4137.5,4.72259]
[1760309121683,4.58606,4139.0,4137.5,4.72259]
[1760309121684,0.7641,4138.6,4137.6,0.7691]
[1760309121984,0.7641,4138.6,4137.5,3.5188]
[1760309121985,0.43467,4137.8,4137.5,3.2078]
[1760309122181,0.43468,4137.7,4137.5,3.9769]
[1760309122385,3.59259839,4137.7,4137.5,3.9769]
[1760309122582,0.43471,4137.3,4137.1,1.29157342]
[1760309122783,1.19883,4137.1,4137.0,3.2078]
[1760309122980,3.08109964,4137.2,4137.1,0.7691]
[1760309123182,0.00285943,4137.7,4137.1,1.20383]
[1760309123377,0.43478,4136.7,4136.6,1.29157342]
[1760309123583,0.7641,4136.5,4136.4,3.2078]
[1760309123980,1.19888,4136.7,4136.5,0.7691]
[1760309124288,4.30496238,4136.7,4136.5,0.7691]
[1760309124475,0.4348,4136.5,4136.4,3.2078]
[1760309124779,0.43484,4136.1,4136.0,0.7691]
[1760309124985,1.19894,4136.1,4136.0,0.7691]
[1760309125378,0.7641,4136.1,4136.0,0.7691]
[1760309125581,0.43482,4136.3,4136.1,0.43483]
[1760309125786,0.43482,4136.3,4136.1,1.20393]
[1760309125983,3.07825816,4136.2,4136.1,1.20393]
[1760309126282,3.07825816,4136.2,4136.1,0.7691]
[1760309126489,3.9719,4137.3,4136.6,0.43478]
[1760309126675,0.43478,4136.7,4136.5,3.2078]
[1760309126875,1.19888,4136.7,4136.5,3.2078]
[1760309127580,1.19888,4136.7,4136.5,3.6426]
[1760309127886,1.0395,4136.5,4136.1,1.29273975]
[1760309128185,0.43483,4136.2,4136.1,1.29273975]
[1760309128382,1.19893,4136.2,4136.0,1.29273975]
[1760309128581,0.7641,4136.1,4136.0,1.29273975]
[1760309129279,1.19895,4136.1,4135.9,3.64266]
[1760309129677,3.2078,4136.8,4136.3,0.43482]
[1760309129881,3.2078,4136.8,4136.1,2.06302888]
[1760309130080,3.10599867,4136.4,4136.2,1.29392888]
[1760309130287,3.10599867,4136.7,4136.3,1.20391]
[1760309130483,3.9719,4137.3,4136.7,0.7691]
[1760309130781,3.64252,4137.3,4137.2,0.7691]
[1760309130983,0.43753943,4137.7,4137.5,0.43469]
[1760309131182,0.00285943,4137.7,4137.6,0.7691]
[1760309131389,0.43468,4137.6,4137.5,0.43469]
[1760309131584,1.19878,4137.6,4137.2,0.7691]
[1760309131788,1.19878,4137.6,4137.1,1.29392888]
[1760309131990,0.00285943,4137.7,4137.6,0.43468]
[1760309132188,0.00285943,4137.7,4137.6,1.20378]
[1760309132689,0.00285943,4137.7,4137.6,4.41158]
[1760309134685,0.00285943,4137.7,4137.6,6.13768769]
[1760309136596,0.00285943,4137.7,4137.6,4.41158]
[1760309137596,0.00285943,4137.7,4137.6,6.13768769]
[1760309138497,0.00285943,4137.7,4137.6,4.41158]
[1760309138899,0.43458,4138.6,4138.5,0.74558]
[1760309139194,3.1462167,4138.9,4138.7,0.43457]
[1760309139499,3.1462167,4138.9,4138.8,0.7691]
[1760309139694,3.2078,4139.0,4138.9,0.43455]
[1760309139998,3.2078,4139.0,4138.9,1.20365]
[1760309140198,0.00280039,4139.0,4138.9,1.20576339]
[1760309141901,0.76690039,4139.0,4138.9,2.06672034]
[1760309142492,0.76690039,4139.0,4138.9,0.00211339]
[1760309142895,0.00280039,4139.0,4138.9,0.77121339]
[1760309143798,4.22630433,4139.0,4138.9,0.00211339]
[1760309143996,3.95090433,4139.0,4138.9,0.77121339]
[1760309144202,3.18680433,4139.0,4138.9,0.77121339]
[1760309144601,3.95090433,4139.0,4138.9,0.77121339]
[1760309144802,3.18680433,4139.0,4138.9,0.77121339]
[1760309146207,3.62133433,4139.0,4138.9,0.77121339]
[1760309146702,0.00280039,4139.0,4138.9,4.41356339]
[1760309147104,3.2078,4140.5,4140.0,0.43442]
[1760309147308,3.2078,4141.0,4140.0,0.2924]
[1760309147500,3.2078,4141.0,4140.6,0.7499]
[1760309147897,3.2078,4141.0,4140.5,0.2924]
[1760309147898,0.43436,4140.8,4140.5,0.2924]
[1760309148203,0.7206,4140.7,4140.1,0.7499]
[1760309148506,0.43438,4140.5,4140.0,0.72682]
[1760309148707,0.43436,4140.7,4140.2,0.4344]
[1760309148896,3.10719055,4140.6,4140.5,0.7499]
[1760309149103,0.43436,4140.7,4140.4,3.2078]
[1760309149305,0.43437,4140.6,4140.5,0.7499]
[1760309149503,3.54156055,4140.6,4140.5,0.7499]
[1760309149712,0.43434,4140.9,4140.7,0.7499]
[1760309149904,0.43434,4140.9,4140.5,0.2924]
[1760309150107,0.7206,4139.9,4139.4,3.64229]
[1760309150306,1.80658,4140.4,4139.6,0.7499]
[1760309150608,0.43444,4139.9,4139.7,0.7499]
[1760309150803,0.43444,4139.9,4139.6,0.43447]
[1760309151004,0.43446,4139.7,4139.6,0.7499]
[1760309152310,3.9284,4140.0,4139.6,0.7499]
[1760309152311,3.2078,4140.0,4139.6,0.7012]
[1760309152608,3.07416579,4139.9,4139.6,0.7012]
[1760309152808,0.43447,4139.7,4139.6,0.7012]
[1760309153008,3.07416579,4139.9,4139.4,3.909]
[1760309153009,0.43448,4139.5,4139.4,3.909]
[1760309153418,0.43452,4139.1,4138.9,0.70331339]
[1760309153712,0.43451,4139.3,4138.9,0.00211339]
[1760309153907,0.43451,4139.3,4139.0,0.2799]
[1760309154314,0.43452,4139.1,4139.0,0.9811]
[1760309154820,1.15262,4139.1,4138.9,1.13785339]
[1760309155112,0.43452,4139.2,4139.1,0.7012]
[1760309155810,3.4946,4140.0,4138.9,0.00211339]
[1760309156113,3.4946,4140.0,4139.3,3.909]
[1760309156114,0.43449,4139.4,4139.3,3.909]
[1760309157214,3.58298735,4139.4,4139.3,3.909]
[1760309157713,3.58298735,4139.4,4138.9,0.00211339]
[1760309157714,0.43453,4139.0,4138.9,0.00211339]
[1760309158009,1.15263,4139.0,4138.9,0.00211339]
[1760309158214,4.62285312,4139.0,4138.9,0.00211339]
[1760309158420,7.83065312,4139.0,4138.9,0.00211339]
[1760309158711,0.43465,4137.9,4137.8,3.2078]
[1760309158905,0.43465,4137.9,4137.8,3.909]
[1760309159709,0.43472,4137.2,4137.0,3.2078]
[1760309159914,1.15282,4137.2,4137.0,3.2078]
[1760309160117,3.87656864,4137.1,4137.0,3.20991415]
[1760309161115,3.15846864,4137.1,4137.0,3.20991415]
[1760309161417,3.15846864,4137.1,4137.0,3.91111415]
[1760309161709,0.7181,4137.6,4137.0,4.19101415]
[1760309161915,0.00201134,4137.9,4137.3,0.7012]
[1760309162110,3.18850273,4137.5,4137.3,0.7012]
[1760309162307,0.43469,4137.6,4137.3,0.7012]
[1760309162507,0.43469,4137.6,4137.4,0.7012]
[1760309162708,3.10209833,4137.5,4137.4,0.7012]
[1760309163119,4.25489833,4137.5,4137.2,0.7012]
[1760309163311,4.25489833,4137.5,4137.2,1.13592]
[1760309163814,4.25489833,4137.5,4137.3,0.7012]
[1760309164220,0.7181,4137.4,4137.3,0.7012]
[1760309166307,0.7181,4137.4,4137.0,3.48981415]
[1760309166508,0.7181,4137.1,4137.0,3.20991415]
[1760309167017,1.15281,4137.4,4137.2,0.7012]
[1760309167324,0.7181,4137.1,4137.0,3.20991415]
[1760309167521,3.18393619,4137.3,4137.1,0.43473]
[1760309167821,0.43473,4137.2,4137.1,0.7012]
[1760309168019,1.15283,4137.2,4137.0,3.20991415]
[1760309168221,0.7181,4137.1,4137.0,0.00211415]
[1760309168420,0.7181,4137.1,4136.5,3.2078]
[1760309168421,0.43479,4136.6,4136.5,3.2078]
[1760309168720,0.43479,4136.6,4135.9,0.7012]
[1760309168721,0.7181,4136.0,4135.9,3.2078]
[1760309168919,1.0049,4136.0,4135.9,3.2078]
[1760309169109,4.20352031,4136.0,4135.9,3.2078]
[1760309169512,4.20352031,4136.0,4135.9,3.21057217]
[1760309169920,3.91672031,4136.0,4135.9,3.21057217]
[1760309171121,3.19862031,4136.0,4135.9,3.91177217]
[1760309171914,0.7181,4137.0,4136.7,0.7012]
[1760309172118,0.7181,4137.2,4137.1,0.43473]
[1760309172318,0.7181,4137.2,4136.7,0.43478]
[1760309172319,3.1364032,4136.9,4136.7,0.43478]
[1760309172521,3.1364032,4137.1,4136.9,0.43476]
[1760309172718,3.2078,4137.3,4137.1,0.43473]
[1760309172919,3.2078,4137.3,4137.2,0.7012]
[1760309173125,3.20981134,4137.9,4137.2,0.7012]
[1760309173425,3.20981134,4137.9,4137.1,1.08683]
[1760309173426,3.11742075,4137.8,4137.4,3.909]
[1760309173630,1.15277,4137.7,4137.4,0.4347]
[1760309173922,3.15049628,4137.6,4136.9,3.2078]
[1760309174115,3.15049628,4137.6,4137.0,0.2799]
[1760309174317,3.58517628,4137.6,4137.0,0.2799]
[1760309174520,3.58517628,4137.6,4137.4,0.4347]
[1760309174719,1.15278,4137.6,4137.4,0.4347]
[1760309174915,3.20140779,4137.5,4137.4,0.4347]
[1760309175518,3.92791134,4137.9,4137.7,0.43466]
[1760309175718,3.92791134,4137.9,4137.7,1.13586]
[1760309175926,3.20981134,4137.9,4137.8,0.7012]
[1760309176124,3.2078,4139.0,4138.9,0.43455]
[1760309176323,3.2078,4140.1,4139.1,1.0863]
[1760309176522,3.2078,4140.1,4140.0,0.7012]
[1760309177026,0.7181,4141.1,4140.0,5.27497]
[1760309177221,0.7181,4141.0,4140.8,0.43434]
[1760309177421,3.12692337,4140.9,4140.8,1.13554]
[1760309177720,0.00232601,4141.1,4140.9,0.43433]
[1760309178116,3.14732847,4141.0,4140.9,0.43433]
[1760309178523,3.14732847,4141.0,4140.8,0.7012]
[1760309178828,3.14732847,4141.0,4140.8,1.13554]
[1760309179028,3.14732847,4141.0,4140.8,0.43434]
[1760309179328,3.14732847,4141.0,4140.9,0.7012]
[1760309179628,0.00232601,4141.1,4141.0,1.13552]
[1760309179824,0.00232601,4141.1,4141.0,1.41542]
[1760309181128,0.00232601,4141.1,4140.5,4.1889]
[1760309181519,0.7521,4140.8,4140.5,3.9439]
[1760309181722,0.7521,4140.8,4140.6,0.43436]
[1760309181923,1.18874601,4141.1,4140.7,0.7361]
[1760309182120,0.75442601,4141.1,4140.7,0.7361]
[1760309182328,0.43436,4140.7,4140.2,0.4344]
[1760309182523,0.43436,4140.7,4140.3,0.7361]
[1760309182728,0.43434,4140.9,4140.5,0.7361]
[1760309182928,0.43434,4140.9,4140.5,0.277]
[1760309183134,3.19906371,4140.8,4140.6,0.7361]
[1760309183430,0.43437,4140.6,4140.5,1.0131]
[1760309183632,3.19906371,4140.8,4140.6,0.7361]
[1760309183633,3.63341371,4140.8,4140.6,0.7361]
[1760309184130,0.43664601,4141.1,4140.1,0.7361]
[1760309184323,0.43664601,4141.1,4140.0,0.28282479]
[1760309184324,0.43433,4141.0,4140.6,0.7361]
[1760309184524,0.43435,4140.8,4140.6,0.7361]
[1760309185027,3.59956867,4141.0,4140.7,0.7361]
[1760309185226,3.59956867,4141.0,4140.6,0.43436]
[1760309185424,0.00232601,4141.1,4141.0,1.17042]
[1760309185628,0.00232601,4141.1,4141.0,1.44742]
[1760309186229,0.00232601,4141.1,4141.0,4.65522]
[1760309187632,3.1356265,4141.1,4140.9,0.43433]
[1760309187827,0.00232601,4141.1,4141.0,0.7361]
[1760309188339,0.00232601,4141.1,4141.0,1.0131]
[1760309189127,0.00232601,4141.1,4141.0,0.7361]
[1760309190532,0.00232601,4141.1,4141.0,1.0131]
[1760309191636,0.00232601,4141.1,4141.0,0.7361]
[1760309192137,3.2078,4142.3,4141.3,2.17148]
[1760309192338,0.43419,4142.3,4142.0,0.71122]
[1760309192531,0.4342,4142.2,4142.1,0.7361]
[1760309192728,3.2078,4142.5,4141.6,4.29345]
[1760309192933,3.2078,4142.5,4142.4,0.7361]
[1760309193134,3.20983084,4142.5,4142.4,0.7361]
[1760309193439,3.20983084,4142.5,4142.4,1.17028]
[1760309193633,0.00203084,4142.5,4142.4,1.17028]
[1760309193832,0.43402,4143.9,4143.3,1.17018]
[1760309194134,3.13882746,4143.8,4143.6,0.7361]
[1760309194329,3.13882746,4143.8,4143.5,0.71106]
[1760309194528,3.13882746,4143.9,4143.6,0.43405]
[1760309194738,0.00225546,4143.9,4143.8,0.7361]
[1760309195144,0.43628546,4143.9,4143.6,0.00189015]
[1760309195441,0.00225546,4143.9,4143.6,0.00189015]
[1760309195641,0.43627546,4143.9,4143.7,0.7361]
[1760309195833,0.00225546,4143.9,4143.7,0.7361]
[1760309196230,0.00225546,4143.9,4143.8,0.7361]
[1760309197642,0.7521,4143.7,4143.6,0.00189015]
[1760309198043,3.9531076,4143.7,4143.6,0.00189015]
[1760309198543,0.00225546,4143.9,4143.8,0.7361]
[1760309200545,0.43627546,4143.9,4143.8,0.7361]
[1760309203539,0.43627546,4143.9,4143.6,0.00189015]
[1760309203540,1.18837546,4143.9,4143.6,0.00189015]
[1760309203742,1.18614,4143.7,4143.6,0.00189015]
[1760309204146,4.38352437,4143.7,4143.6,0.00189015]
[1760309204348,0.7521,4142.6,4142.3,3.2078]
[1760309204646,0.2791,4143.5,4142.3,3.2078]
[1760309204647,0.7521,4142.7,4142.3,3.2078]
[1760309204849,1.0852,4143.4,4142.3,3.2078]
[1760309204850,0.75435546,4143.9,4142.5,0.277]
[1760309205042,3.15634926,4143.4,4143.1,0.7361]
[1760309205242,3.15634926,4143.8,4143.1,0.7361]
[1760309205441,0.00225546,4143.9,4143.1,0.0020776]
[1760309205646,0.43403,4143.8,4143.6,0.7229]
[1760309205846,0.43404,4143.7,4143.6,0.7229]
[1760309206044,3.56977043,4143.7,4143.6,0.7229]
[1760309206346,0.00225546,4143.9,4143.2,0.7229]
[1760309206347,0.43409,4143.3,4143.2,0.7229]
[1760309206647,0.43407,4143.5,4143.2,0.43409]
[1760309206841,0.43408,4143.4,4143.3,0.7229]
[1760309207237,0.6959,4143.6,4143.1,0.0020776]
[1760309207444,0.43409,4143.2,4143.1,0.0020776]
[1760309207642,1.12999,4143.2,4143.1,0.0020776]
[1760309208849,0.00225546,4143.9,4143.5,0.71346]
[1760309209044,0.43404,4143.8,4143.6,0.7229]
[1760309209252,0.43405,4143.7,4143.6,0.7229]
[1760309209545,0.00225546,4143.9,4143.7,0.43404]
[1760309209849,0.00225546,4143.9,4143.8,3.9307]
[1760309212051,40.8,4145.1,4144.1,0.6897]
[1760309212355,3.2078,4145.2,4145.1,0.6897]
[1760309213048,3.21053418,4145.2,4145.1,0.6897]
[1760309213249,0.43395,4144.6,4144.5,0.9788]
[1760309213446,0.43394,4144.7,4144.6,0.6897]
[1760309213752,0.43394,4144.7,4144.5,0.2891]
[1760309213949,0.43394,4144.7,4144.6,0.6897]
[1760309215644,3.91503418,4145.2,4144.4,0.6897]
[1760309215645,0.43396,4144.5,4144.4,0.6897]
[1760309216849,4.29527418,4145.2,4144.5,0.2891]
[1760309217053,0.43394,4144.7,4144.6,0.6897]
[1760309218148,0.43394,4144.7,4143.9,0.6897]
[1760309218149,6.32376762,4144.7,4143.9,0.6897]
[1760309218348,0.7045,4143.4,4143.3,3.2078]
[1760309218649,0.7045,4143.2,4142.9,0.6897]
[1760309218852,0.7045,4143.2,4142.7,3.2078]
[1760309219148,0.7045,4143.2,4142.2,3.2078]
[1760309219149,3.80191191,4143.2,4142.2,3.2078]
[1760309219357,1.13869,4142.3,4142.2,3.2078]
[1760309219650,0.4343,4141.2,4141.1,3.8975]
[1760309219853,0.4343,4141.2,4141.1,3.2078]
[1760309220249,4.21981469,4141.2,4141.1,0.00209749]
[1760309220550,3.51531469,4141.2,4141.1,0.69179749]
[1760309220749,1.08546,4142.4,4141.1,0.69179749]
[1760309220750,3.2078,4142.9,4141.1,3.89959749]
[1760309220947,3.2078,4142.9,4142.1,0.6897]
[1760309221346,43.97276967,4142.8,4142.1,0.6897]
[1760309221548,0.43419,4142.3,4142.0,0.2891]
[1760309221757,0.00238022,4142.3,4142.1,0.4342]
[1760309221948,0.00238022,4142.3,4142.2,0.6897]
[1760309222648,0.43657022,4142.3,4142.2,0.6897]
[1760309223053,0.43422,4142.0,4141.9,3.2078]
[1760309223246,0.43425,4141.7,4141.5,0.2891]
[1760309223548,0.43425,4141.7,4141.6,0.6897]
[1760309223949,0.43425,4141.7,4141.4,3.2078]
[1760309223950,0.43427,4141.5,4141.4,3.8975]
[1760309224547,4.27460653,4141.5,4141.4,3.2078]
[1760309224753,4.27460653,4141.5,4140.8,0.6897]
[1760309224754,1.1388,4141.2,4140.9,3.2078]
[1760309225060,4.26087883,4141.2,4140.9,3.2078]
[1760309225247,4.26087883,4141.2,4140.3,3.8975]
[1760309225652,4.26087883,4141.2,4139.9,1.29533534]
[1760309225653,0.7045,4140.7,4139.8,3.2078]
[1760309225958,0.43444,4139.9,4139.8,3.2078]
[1760309226158,3.12751939,4140.6,4139.8,3.2078]
[1760309226159,3.12751939,4140.6,4139.9,0.6897]
[1760309226464,3.12751939,4140.4,4139.8,3.2078]
[1760309226753,3.2078,4141.3,4140.3,3.2078]
[1760309227054,3.2078,4142.1,4141.1,1.12401]
[1760309227259,3.2078,4142.1,4141.0,0.2891]
[1760309227448,0.00238022,4142.3,4142.0,0.2891]
[1760309227651,0.43412,4143.0,4142.1,0.6897]
[1760309227853,0.43414,4142.8,4142.6,0.6897]
[1760309228053,0.43409,4143.3,4142.9,0.43412]
[1760309228253,3.11164156,4143.9,4142.9,0.43412]
[1760309228254,3.2078,4144.3,4143.1,0.6897]
[1760309228457,1.08481,4144.9,4143.0,0.2891]
[1760309228458,1.08481,4144.9,4143.8,0.6897]
[1760309228647,1.08752352,4144.9,4143.8,0.6918599]
[1760309228855,0.43397,4144.4,4143.9,0.43402]
[1760309229146,0.00271352,4144.9,4144.2,0.43399]
[1760309229351,0.43663352,4144.9,4144.7,0.6897]
[1760309229555,0.00271352,4144.9,4144.7,0.6897]
[1760309229751,0.00271352,4144.9,4144.8,0.9788]
[1760309229954,0.22,4145.3,4144.9,0.6897]
[1760309230351,0.22,4145.3,4145.0,0.6897]
[1760309230560,3.08817798,4145.2,4144.8,0.2891]
[1760309230761,0.22,4145.3,4144.8,0.2891]
[1760309230955,0.22256121,4145.3,4145.1,3.2078]
[1760309231256,0.22256121,4145.3,4145.2,0.6897]
[1760309231657,3.13219428,4145.2,4144.7,0.6897]
[1760309231962,0.22256121,4145.3,4144.7,0.6897]
[1760309232153,0.22256121,4145.3,4144.8,0.2891]
[1760309232358,0.22256121,4145.3,4145.2,3.8975]
[1760309233055,0.43374,4146.6,4145.9,0.6897]
[1760309233260,3.2078,4146.7,4146.1,0.6897]
[1760309233461,3.9123,4147.2,4146.1,0.6897]
[1760309233757,0.43376,4146.5,4146.1,0.6897]
[1760309233958,0.00289752,4146.5,4146.0,0.2891]
[1760309234165,0.00289752,4146.5,4146.1,0.6897]
[1760309234357,0.00289752,4146.5,4146.0,0.72289]
[1760309234759,0.00289752,4146.5,4146.0,0.2891]
[1760309234966,0.00289752,4146.5,4146.4,3.8975]
[1760309235760,1.08398,4148.1,4146.7,0.43373]
[1760309235954,3.2078,4148.2,4147.3,0.6897]
[1760309236156,0.43366,4147.4,4147.2,0.2891]
[1760309236361,0.43366,4147.4,4145.4,3.10078195]
[1760309236362,0.43379,4146.1,4145.9,3.2078]
[1760309236561,0.43377,4146.4,4146.1,0.6897]
[1760309236762,0.43378,4146.3,4146.1,0.00196695]
[1760309237063,0.43644133,4146.4,4146.1,0.00196695]
[1760309237263,0.43377,4146.3,4146.2,0.6897]
[1760309237562,6.78183668,4146.3,4146.2,0.6897]
[1760309237763,0.43377,4146.3,4146.2,0.6897]
[1760309238466,0.00267133,4146.4,4146.2,0.6897]
[1760309238655,0.00267133,4146.4,4146.1,0.00196695]
[1760309239369,0.00267133,4146.4,4146.2,0.6897]
[1760309240165,0.00267133,4146.4,4146.3,1.12347]
[1760309240669,0.00267133,4146.4,4146.3,4.33127]
[1760309241263,3.2078,4147.6,4146.8,0.43371]
[1760309241463,0.43367,4147.3,4147.1,0.7062]
[1760309241670,1.08399,4148.0,4147.0,0.72279]
[1760309241858,0.43362,4147.7,4147.1,0.7062]